bitfinex-derivatives/quotes_ETHF0:USTF0_20250828
["timestamp","ask_amount","ask_price","bid_price","bid_amount"]
[1756396358197,1.7374,4492.1,4492.0,21.71982281]
[1756396358403,0.40064,4492.3,4492.0,21.86982281]
[1756396358708,1.46114,4492.3,4492.0,20.66618943]
[1756396358911,1.00145,4493.0,4492.0,20.66618943]
[1756396359209,0.40061,4492.6,4492.0,20.66618943]
[1756396359405,1.0605,4492.8,4492.2,0.40064]
[1756396359615,0.40056,4493.1,4492.5,0.4006]
[1756396359801,1.00123,4494.0,4492.6,0.8012]
[1756396360006,0.40054,4493.4,4492.7,0.4006]
[1756396360206,0.40054,4493.4,4492.8,0.4006]
[1756396360408,1.00122,4494.0,4492.8,0.4006]
[1756396360602,0.40053,4493.5,4492.8,0.4006]
[1756396360804,0.40052,4493.6,4492.9,0.4006]
[1756396361316,1.00116,4494.3,4492.9,0.4006]
[1756396361508,1.00096,4495.2,4492.9,0.4006]
[1756396361707,1.00096,4495.2,4492.1,0.89543333]
[1756396361708,0.40053,4493.5,4492.1,0.89543333]
[1756396361914,0.40054,4493.4,4492.2,0.42653671]
[1756396362116,0.40053,4493.5,4492.2,1.00161]
[1756396362316,0.40054,4493.4,4492.6,0.4006]
[1756396362513,1.0605,4493.7,4492.7,0.4006]
[1756396363113,0.31080226,4494.2,4492.9,1.00146]
[1756396363409,1.001,4495.0,4492.8,0.9804]
[1756396363607,0.40056,4493.2,4493.0,40.8]
[1756396364011,0.40054,4493.4,4493.0,40.8]
[1756396364406,1.00119,4494.1,4493.1,0.9804]
[1756396364915,0.40052,4493.6,4492.8,1.38099]
[1756396365111,0.40052,4493.6,4492.1,3.76018337]
[1756396365112,0.40051,4493.7,4493.0,0.9804]
[1756396365506,1.0605,4493.8,4493.0,0.9804]
[1756396365812,0.40054,4493.4,4493.1,42.4938]
[1756396366011,1.0605,4493.3,4493.2,0.9804]
[1756396366208,1.0605,4493.3,4493.2,1.6938]
[1756396366510,1.46103,4493.5,4493.2,0.9804]
[1756396366716,0.40054,4493.4,4492.7,0.4006]
[1756396366917,0.4005,4493.9,4493.4,0.9024]
[1756396367214,0.6769,4494.0,4493.2,0.7476]
[1756396367417,1.07739,4494.0,4493.2,1.14815]
[1756396367616,1.07739,4494.0,4493.3,40.8]
[1756396367819,0.40049,4493.9,4493.2,1.14815]
[1756396368016,2.00179,4495.5,4493.2,1.14815]
[1756396368017,1.00101,4494.9,4493.2,0.7476]
[1756396368218,1.00107,4494.7,4493.2,0.7476]
[1756396368511,1.00098,4495.1,4493.6,0.40052]
[1756396368718,2.00156,4496.0,4493.7,32.8046]
[1756396368918,2.00156,4496.0,4493.8,41.2005]
[1756396368919,0.40043,4494.7,4493.8,41.2005]
[1756396369214,1.46093,4494.6,4494.0,0.7476]
[1756396369516,0.40042,4494.7,4493.8,41.2005]
[1756396369706,1.46093,4494.6,4493.9,0.7476]
[1756396370017,1.0605,4494.6,4493.9,1.14809]
[1756396370218,1.0605,4494.6,4493.9,0.7476]
[1756396370419,1.46093,4494.6,4493.9,1.14809]
[1756396370713,1.0605,4494.6,4494.0,1.14808]
[1756396371013,1.00079,4496.0,4494.4,0.40044]
[1756396371212,1.0605,4495.6,4494.0,1.00121]
[1756396371418,1.0605,4496.2,4494.2,1.00117]
[1756396371610,1.00071,4496.3,4493.8,42.795178]
[1756396371815,1.0605,4495.0,4493.9,1.995178]
[1756396372119,1.4609,4495.0,4494.1,0.40047]
[1756396372420,1.0605,4494.8,4494.2,0.40046]
[1756396372621,1.46091,4494.8,4494.0,0.40047]
[1756396373119,0.40042,4494.7,4493.8,42.795178]
[1756396373322,0.40042,4494.7,4494.0,0.40048]
[1756396373717,1.0605,4494.7,4493.8,40.8]
[1756396373924,1.0605,4493.8,4493.7,30.94566662]
[1756396374322,0.40046,4494.3,4493.7,30.94566662]
[1756396374623,1.0605,4494.3,4493.7,71.74566662]
[1756396374919,1.7374,4493.8,4493.7,71.74566662]
[1756396375623,1.0605,4493.8,4493.7,71.74566662]
[1756396376618,0.40048,4494.1,4493.7,30.94566662]
[1756396376819,0.40044,4494.5,4494.0,0.5191]
[1756396377015,0.40045,4494.4,4493.7,71.47783324]
[1756396377217,1.0605,4494.4,4493.7,71.87834324]
[1756396377724,1.0605,4494.4,4493.7,71.47783324]
[1756396377924,0.40048,4494.0,4493.7,71.47783324]
[1756396378127,0.40047,4494.1,4493.7,71.47783324]
[1756396378525,0.40047,4494.2,4493.7,71.47783324]
[1756396378729,1.7374,4493.8,4493.7,71.47783324]
[1756396378930,1.0605,4493.8,4493.7,71.47783324]
[1756396379131,1.0605,4494.1,4493.7,71.47783324]
[1756396379428,0.40048,4494.1,4493.7,71.47783324]
[1756396379628,1.0605,4494.0,4493.7,71.47783324]
[1756396379826,1.0605,4493.8,4493.7,71.47783324]
[1756396380023,1.0605,4493.8,4493.7,70.36649986]
[1756396380422,1.00084,4495.7,4493.7,70.36649986]
[1756396380624,1.7374,4493.8,4493.7,70.36649986]
[1756396381027,1.0605,4493.8,4493.7,70.36649986]
[1756396381222,1.0605,4494.6,4493.7,70.36649986]
[1756396381420,0.40044,4494.5,4493.7,70.36649986]
[1756396381624,1.0605,4494.6,4493.7,70.36649986]
[1756396381832,1.0605,4494.6,4493.7,70.76700986]
[1756396382028,1.00085,4495.7,4494.3,0.40045]
[1756396382326,0.40036,4495.4,4494.1,1.00119]
[1756396382633,1.0605,4495.7,4495.0,40.8]
[1756396382833,0.79296926,4495.7,4495.0,40.8]
[1756396383027,0.79296926,4495.7,4494.9,0.4004]
[1756396383234,0.79296926,4495.7,4494.7,0.40041]
[1756396383433,0.40034,4495.6,4494.7,0.40041]
[1756396383634,0.40035,4495.5,4494.8,0.40041]
[1756396383832,1.19330926,4495.7,4494.8,0.97192263]
[1756396384032,0.40034,4495.6,4495.0,40.8]
[1756396384234,0.79296926,4495.7,4495.0,40.8]
[1756396384829,1.0605,4496.5,4495.0,40.8]
[1756396385034,0.40028,4496.3,4495.0,40.8]
[1756396385224,1.0605,4496.5,4495.1,0.40038]
[1756396385428,1.0605,4496.5,4495.0,40.8]
[1756396385629,0.40028,4496.3,4495.4,0.40035]
[1756396385831,1.0605,4496.5,4495.5,32.048]
[1756396386130,1.00035,4497.9,4495.5,30.93666662]
[1756396386438,0.54787193,4497.3,4497.1,0.5171]
[1756396386632,0.54787193,4497.3,4497.2,32.047]
[1756396386833,0.4002,4497.3,4497.2,32.047]
[1756396387032,0.40018,4497.5,4497.2,32.047]
[1756396387335,0.40015,4497.8,4497.2,32.047]
[1756396387631,0.40017,4497.5,4497.4,0.5171]
[1756396388033,1.00028,4498.2,4497.2,32.047]
[1756396388034,0.40019,4497.3,4497.2,32.047]
[1756396388234,0.40019,4497.3,4497.2,72.847]
[1756396388435,3.00037,4499.0,4497.2,72.847]
[1756396388436,1.00023,4498.4,4497.2,72.847]
[1756396388732,1.0205,4498.1,4497.4,0.8403]
[1756396388933,1.0205,4497.3,4497.2,72.847]
[1756396389133,1.0205,4497.3,4497.2,71.73566662]
[1756396389535,1.0205,4497.3,4497.2,30.93566662]
[1756396389930,5.0205,4497.3,4497.2,30.93566662]
[1756396390333,5.0205,4497.3,4497.2,29.80406662]
[1756396390835,1.0205,4497.3,4497.2,29.80406662]
[1756396391342,5.0205,4497.3,4497.2,29.80406662]
[1756396391636,5.24286,4497.3,4497.2,26.70596662]
[1756396392035,1.0205,4497.3,4497.2,26.70596662]
[1756396392340,1.0205,4497.3,4497.2,25.59463324]
[1756396392738,1.0205,4497.3,4497.2,26.71073324]
[1756396392942,0.40018,4497.4,4497.3,0.7176]
[1756396393144,0.40018,4497.4,4497.3,1.8337]
[1756396393546,0.40018,4497.4,4497.2,25.59463324]
[1756396394147,0.40018,4497.4,4497.3,1.1161]
[1756396394346,4.40018,4497.4,4497.2,25.59463324]
[1756396394748,0.40018,4497.4,4497.3,1.1161]
[1756396395047,0.40018,4497.4,4497.3,1.8337]
[1756396395348,9.99811,4500.4,4497.3,0.72236662]
[1756396395349,0.40017,4497.5,4497.3,0.72236662]
[1756396395549,0.40017,4497.5,4497.3,0.7176]
[1756396397141,0.40017,4497.5,4497.4,1.1161]
[1756396397345,1.00024,4498.4,4497.4,1.8337]
[1756396397546,0.40017,4497.6,4497.5,1.8337]
[1756396398050,0.40016,4497.7,4497.6,1.8337]
[1756396398249,0.40016,4497.7,4497.6,0.72236662]
[1756396398645,0.1,4500.2,4497.6,0.7176]
[1756396398646,1.0205,4498.8,4497.6,0.7176]
[1756396398850,0.40014,4497.9,4497.6,0.7176]
[1756396399050,1.0205,4498.8,4497.6,0.7176]
[1756396399253,0.40009,4498.4,4497.6,1.11776]
[1756396399453,0.40009,4498.5,4497.6,1.11776]
[1756396399751,0.40012,4498.1,4497.6,0.7176]
[1756396400052,1.0205,4498.8,4497.6,0.7176]
[1756396400248,1.0205,4499.3,4497.7,0.40015]
[1756396400451,1.0205,4499.3,4498.4,1.1161]
[1756396400746,0.40004,4499.0,4498.9,0.7176]
[1756396400955,0.40003,4499.1,4499.0,1.8337]
[1756396401345,1.0205,4499.0,4498.9,32.033]
[1756396401549,5.0205,4499.0,4498.9,29.86217]
[1756396401851,5.0205,4499.0,4498.9,26.40193]
[1756396402050,5.0205,4499.0,4498.9,25.08063]
[1756396402250,1.0205,4499.0,4498.9,24.61129]
[1756396402752,5.24277001,4499.0,4498.9,22.91203]
[1756396402954,5.24277001,4499.0,4498.9,22.22237]
[1756396403149,5.24277001,4499.0,4498.9,21.75921]
[1756396403354,4.0,4499.0,4497.4,32.031]
[1756396403557,0.22231,4499.0,4497.5,1.1161]
[1756396403754,8.915,4500.1,4497.5,1.1161]
[1756396403955,0.55265935,4500.0,4497.5,1.1161]
[1756396404150,0.55265935,4499.9,4497.5,1.1161]
[1756396404350,1.7381,4497.6,4497.5,0.00476662]
[1756396404555,0.7176,4497.6,4497.5,0.72236662]
[1756396405156,14.378,4499.8,4497.5,0.7176]
[1756396405358,10.71071678,4499.7,4497.5,0.7176]
[1756396405557,1.0205,4499.5,4497.5,0.7176]
[1756396405856,1.0205,4499.3,4497.5,0.7176]
[1756396406158,1.0205,4499.1,4497.5,0.7176]
[1756396406455,8.915,4499.7,4497.7,1.1161]
[1756396406456,1.0205,4498.9,4497.7,1.1161]
[1756396407049,8.915,4499.7,4498.1,0.40011]
[1756396407258,1.57397459,4499.6,4498.2,1.1161]
[1756396407456,0.55347459,4499.5,4498.2,0.00476662]
[1756396409161,0.4001,4498.3,4498.2,0.00476662]
[1756396410152,4.4001,4498.3,4498.2,6.62e-06]
[1756396410357,4.0,4498.3,4497.4,30.91967324]
[1756396410555,10.00022,4499.4,4497.4,30.91967324]
[1756396410853,0.77635496,4499.3,4497.4,30.91967324]
[1756396411052,0.77635496,4499.2,4497.4,30.91967324]
[1756396411252,1.5434576,4499.0,4495.9,32.029]
[1756396411457,1.5434576,4499.0,4495.9,32.59577686]
[1756396411658,0.22235,4498.9,4495.9,32.59577686]
[1756396411959,5.2414576,4498.7,4495.9,32.59577686]
[1756396412154,0.4003,4496.0,4495.9,32.59577686]
[1756396413057,1.00064,4496.6,4495.9,32.59577686]
[1756396413058,0.40029,4496.2,4496.0,0.4003]
[1756396413257,1.00052,4497.2,4496.1,0.40029]
[1756396413562,1.00052,4497.2,4495.9,31.48444348]
[1756396413758,0.40028,4496.3,4495.9,31.88475348]
[1756396414159,1.00048,4497.4,4495.9,31.48444348]
[1756396414358,1.00048,4497.4,4496.2,0.40028]
[1756396414758,0.40023,4496.8,4496.2,0.40028]
[1756396414959,1.00033,4498.0,4495.9,31.48444348]
[1756396415158,0.40022,4497.0,4496.2,0.40028]
[1756396415359,0.4002,4497.2,4495.9,31.48444348]
[1756396415559,0.4002,4497.2,4496.0,0.22239]
[1756396415764,0.4002,4497.2,4496.5,0.40026]
[1756396416063,0.4002,4497.2,4496.1,4.22239]
[1756396416265,0.40021,4497.1,4496.3,0.40027]
[1756396416459,0.40019,4497.3,4496.0,0.22235]
[1756396416660,0.40019,4497.3,4496.5,0.40026]
[1756396417167,1.00035,4497.9,4496.6,4.0]
[1756396417357,6.1738305,4503.5,4496.1,1.00073]
[1756396417562,0.55099549,4499.0,4496.7,0.40024]
[1756396417859,0.55099549,4498.9,4496.2,0.22233999]
[1756396418065,9.99903,4500.0,4496.2,2.995888]
[1756396418265,0.55112814,4499.9,4497.1,0.4002]
[1756396418468,0.55112814,4499.8,4496.7,1.00061]
[1756396418667,0.55112814,4499.7,4497.2,0.4002]
[1756396418862,0.1,4500.2,4497.3,0.40018]
[1756396419068,0.55119979,4500.1,4497.4,40.8]
[1756396419268,0.55119979,4500.0,4497.4,40.8]
[1756396419459,0.55119979,4499.9,4496.7,2.395418]
[1756396419657,0.55119979,4499.8,4496.2,0.40028]
[1756396419862,0.55119979,4499.7,4496.2,0.40028]
[1756396420062,0.55119979,4499.6,4496.2,0.40028]
[1756396420365,0.55119979,4499.5,4496.4,0.40027]
[1756396420559,0.55119979,4499.4,4496.5,40.8]
[1756396420755,0.22232,4500.1,4496.5,41.20026]
[1756396420756,0.55119979,4499.3,4496.5,41.20026]
[1756396420961,0.55119979,4499.2,4496.5,41.20026]
[1756396421262,0.55119979,4499.1,4496.5,41.20026]
[1756396421472,0.55119979,4499.0,4496.5,41.20026]
[1756396421765,0.55119979,4498.9,4496.5,40.8]
[1756396421965,0.55119979,4498.8,4496.2,0.40028]
[1756396422165,0.55119979,4498.7,4496.2,0.40028]
[1756396422364,0.55119979,4498.6,4496.3,0.40028]
[1756396422568,0.55119979,4498.5,4495.9,30.7733801]
[1756396422864,0.22233,4499.8,4496.6,0.40025]
[1756396423068,0.54814616,4499.7,4496.1,1.00074]
[1756396423370,0.54814616,4499.7,4497.2,0.40019]
[1756396423371,0.54814616,4499.6,4497.2,0.40019]
[1756396423561,0.54814616,4499.5,4497.4,0.40018]
[1756396423757,0.54814616,4499.5,4496.9,1.00056]
[1756396423964,0.40013,4498.0,4497.2,1.0005]
[1756396424165,0.40014,4497.9,4497.7,0.40014]
[1756396424367,0.40013,4498.0,4497.7,0.40015]
[1756396424561,0.40013,4498.0,4497.2,1.0005]
[1756396424761,0.40013,4498.0,4497.6,0.40015]
[1756396424966,0.40014,4497.9,4497.7,32.029]
[1756396425161,1.00021,4498.5,4497.7,32.029]
[1756396425162,1.00015,4498.8,4497.7,32.029]
[1756396425372,0.40014,4497.9,4497.7,32.029]
[1756396425665,0.40014,4497.9,4497.7,30.91766662]
[1756396426067,0.40012,4498.1,4497.7,30.91766662]
[1756396426271,0.40014,4497.9,4497.7,30.91766662]
[1756396426970,0.4001,4498.4,4497.7,34.91766662]
[1756396427167,1.00007,4499.2,4497.7,30.91766662]
[1756396427371,0.40006,4498.7,4497.8,0.40014]
[1756396427571,0.40005,4498.9,4497.9,0.40013]
[1756396427870,0.40006,4498.8,4497.9,0.40013]
[1756396428073,0.40004,4499.0,4498.0,0.40012]
[1756396428263,0.9999,4499.9,4497.7,31.91804662]
[1756396428466,0.40003,4499.2,4498.2,0.4001]
[1756396428667,0.40003,4499.2,4497.7,31.42908324]
[1756396428866,0.99995,4499.7,4498.1,0.40011]
[1756396429472,0.99995,4499.7,4498.2,0.4001]
[1756396429674,0.09995,4500.2,4497.8,0.40014]
[1756396429970,0.09995,4500.2,4497.9,0.40013]
[1756396430174,0.09995,4500.2,4497.7,30.60658324]
[1756396430471,0.09995,4500.2,4498.0,0.40012]
[1756396430867,0.09995,4500.2,4498.1,0.40011]
[1756396431067,0.09995,4500.2,4497.7,30.20643324]
[1756396431068,0.09995,4500.2,4497.9,0.40013]
[1756396431467,0.09995,4500.2,4498.0,0.40012]
[1756396431667,0.09995,4500.2,4497.7,29.49521986]
[1756396431972,0.09995,4500.2,4497.8,0.40014]
[1756396432374,0.09995,4500.2,4497.7,29.49521986]
[1756396432563,0.22227001,4500.1,4497.7,29.49521986]
[1756396432871,0.09995,4500.2,4497.7,29.49521986]
[1756396433070,0.09995,4500.2,4497.8,0.40014]
[1756396433273,0.09995,4500.2,4497.7,29.49521986]
[1756396433470,0.09995,4500.2,4498.1,0.40012]
[1756396433868,0.09995,4500.2,4497.7,29.49521986]
[1756396434067,0.09995,4500.2,4497.8,0.40014]
[1756396434271,0.09995,4500.2,4497.9,0.40013]
[1756396434468,0.22227001,4500.1,4497.9,0.40013]
[1756396434669,8.915,4500.0,4497.7,28.38388648]
[1756396434871,8.915,4499.9,4497.7,28.78403648]
[1756396435175,8.915,4499.9,4497.9,0.40013]
[1756396435373,8.915,4500.0,4497.7,28.78403648]
[1756396435573,8.915,4499.9,4497.7,28.38388648]
[1756396435870,8.915,4499.9,4497.7,28.78403648]
[1756396436270,1.0001,4499.1,4497.8,0.40014]
[1756396436569,0.40012,4498.1,4497.8,0.40014]
[1756396436768,0.40011,4498.3,4497.9,0.40013]
[1756396436973,1.00013,4498.9,4497.7,28.38388648]
[1756396437172,1.00013,4498.9,4497.8,0.40014]
[1756396437370,0.40011,4498.2,4497.7,28.38388648]
[1756396437872,0.40011,4498.2,4497.7,27.2725531]
[1756396438374,0.4001,4498.4,4497.7,27.6727031]
[1756396438568,1.00015,4498.8,4497.7,27.2725531]
[1756396438766,0.40012,4498.1,4497.7,27.2725531]
[1756396439172,0.40011,4498.3,4497.7,27.2725531]
[1756396439364,0.40009,4498.4,4497.7,27.2725531]
[1756396439564,0.40009,4498.5,4497.7,27.2725531]
[1756396439763,0.40007,4498.7,4497.7,27.2725531]
[1756396439968,1.00006,4499.2,4497.7,27.2725531]
[1756396440164,0.40007,4498.7,4497.7,27.2725531]
[1756396440368,1.0,4499.5,4497.7,27.2725531]
[1756396440564,0.4001,4498.3,4497.7,27.2725531]
[1756396440766,0.4001,4498.3,4497.7,26.16121972]
[1756396440963,0.40011,4498.3,4497.7,26.16121972]
[1756396441163,0.40014,4497.8,4497.7,26.16121972]
[1756396441771,0.40013,4498.0,4497.7,26.16121972]
[1756396441973,1.00024,4498.4,4497.7,26.16121972]
[1756396442166,0.40014,4497.8,4497.7,26.16121972]
[1756396442675,0.40013,4498.0,4497.7,30.16121972]
[1756396442871,0.40014,4497.9,4497.7,26.16121972]
[1756396443175,1.00024,4498.4,4497.7,26.16121972]
[1756396444072,1.00024,4498.4,4497.7,25.04988634]
[1756396444576,0.99995,4499.7,4497.7,25.04988634]
[1756396444774,8.915,4499.9,4497.7,25.04988634]
[1756396446272,9.01495,4500.2,4497.8,0.40014]
[1756396446475,9.01495,4500.2,4497.7,25.04988634]
[1756396446873,9.01495,4500.2,4497.7,24.33870296]
[1756396447073,9.01495,4500.2,4498.0,0.40012]
[1756396447275,8.01495,4500.2,4498.0,0.40012]
[1756396447480,8.01495,4500.9,4497.7,25.93373096]
[1756396447675,0.54600729,4500.8,4497.8,2.217428]
[1756396447981,0.54603482,4500.7,4497.8,1.995178]
[1756396448178,0.54603482,4500.6,4497.9,40.8]
[1756396448380,0.54596931,4500.5,4497.9,40.8]
[1756396448574,0.54596931,4500.4,4497.9,40.8]
[1756396448873,0.76822931,4500.3,4497.9,40.8]
[1756396449076,0.22225,4500.8,4498.0,0.40012]
[1756396449276,0.54603188,4500.7,4498.0,0.40012]
[1756396449475,0.22225,4500.7,4498.0,0.40012]
[1756396449671,0.21800207,4501.9,4498.1,0.22225]
[1756396449871,0.54602713,4501.1,4498.0,2.50649462]
[1756396450070,0.22225,4499.4,4498.1,0.22224]
[1756396450278,0.22225,4499.4,4498.4,0.40009]
[1756396450579,0.21800207,4501.9,4498.2,0.22227999]
[1756396450780,0.40004,4499.0,4498.0,1.995178]
[1756396450976,0.22225,4499.4,4498.4,0.40009]
[1756396451276,0.4,4499.4,4498.6,0.40007]
[1756396451476,0.40007,4498.6,4498.3,1.995178]
[1756396451680,0.40008,4498.6,4498.1,1.995178]
[1756396451979,0.40006,4498.8,4498.0,1.995178]
[1756396452179,0.00536773,4499.5,4498.0,1.995178]
[1756396452383,0.22225,4499.1,4498.1,1.995178]
[1756396452677,0.00536773,4499.5,4497.9,40.8]
[1756396452678,0.22225,4499.0,4498.0,1.995178]
[1756396453079,0.00536773,4499.5,4497.7,23.93855296]
[1756396453280,0.22225,4498.0,4497.7,23.93855296]
[1756396453479,0.00536773,4499.5,4497.7,23.93855296]
[1756396453679,0.22225,4498.0,4497.7,23.93855296]
[1756396453880,0.22225,4497.9,4497.7,23.93855296]
[1756396454479,0.00536773,4499.5,4497.7,23.93855296]
[1756396454680,0.22225,4497.9,4497.7,23.93855296]
[1756396455182,0.00536773,4499.5,4497.7,23.93855296]
[1756396455382,0.55161129,4499.4,4497.7,23.93855296]
[1756396455582,0.22225,4498.0,4497.7,23.93855296]
[1756396456079,0.22225,4498.0,4497.7,22.82721958]
[1756396456275,0.00536773,4499.5,4497.7,22.82721958]
[1756396456276,0.22225,4497.8,4497.7,22.82721958]
[1756396456778,4.22225,4497.8,4497.7,22.82721958]
[1756396456978,4.22225,4497.8,4496.0,40.8]
[1756396457183,0.22225,4497.0,4496.2,32.021]
[1756396457379,0.22225,4497.1,4496.2,32.021]
[1756396457976,0.22225,4496.8,4496.2,32.021]
[1756396458172,0.00536773,4499.5,4496.2,32.021]
[1756396458378,0.22225,4496.8,4496.2,32.021]
[1756396458581,0.77346277,4499.4,4496.2,32.021]
[1756396458582,0.22225,4496.9,4496.2,32.021]
[1756396458991,0.00536773,4499.5,4496.2,72.821]
[1756396459180,0.55115117,4499.4,4496.2,71.70966662]
[1756396459379,0.22225,4497.8,4496.2,71.70966662]
[1756396459580,0.22225,4497.8,4496.3,0.22233]
[1756396459778,1.00035,4497.9,4496.3,0.22233]
[1756396459987,0.40021,4497.1,4496.3,0.22233]
[1756396460280,0.40022,4497.0,4496.3,0.22233]
[1756396460582,1.22264,4497.7,4496.2,71.70966662]
[1756396460583,0.40025,4496.6,4496.2,71.70966662]
[1756396460781,0.40027,4496.4,4496.2,71.70966662]
[1756396461680,1.00039,4497.7,4496.3,4.0]
[1756396461883,1.00039,4497.7,4496.2,71.70966662]
[1756396462082,0.22225,4497.3,4496.2,70.59833324]
[1756396462482,1.00039,4497.7,4496.2,70.59833324]
[1756396462879,0.22225,4497.2,4496.2,70.59833324]
[1756396463282,8.01495,4498.4,4496.2,70.59833324]
[1756396463482,0.22225,4497.1,4496.2,70.59833324]
[1756396463883,8.01495,4498.4,4496.2,70.59833324]
[1756396464086,0.22225,4497.1,4496.2,70.59833324]
[1756396464288,0.22225,4497.2,4496.2,70.59833324]
[1756396465188,0.22225,4497.2,4496.2,69.48699986]
[1756396465387,0.22225,4497.1,4496.2,69.48699986]
[1756396465785,8.01495,4498.4,4496.2,69.48699986]
[1756396465986,0.22225,4497.1,4496.2,69.48699986]
[1756396468291,0.22225,4497.0,4496.2,68.37566648]
[1756396468487,10.00048,4499.3,4496.2,68.37566648]
[1756396468688,4.1971287,4499.9,4494.4,32.028]
[1756396468689,2.229,4498.7,4494.4,32.028]
[1756396468889,0.22225,4495.3,4494.4,32.028]
[1756396469189,0.40043,4494.6,4494.4,32.52499773]
[1756396469496,1.00091,4495.3,4494.4,32.52499773]
[1756396469696,0.22225,4495.1,4494.4,73.32499773]
[1756396469988,0.40043,4494.6,4494.4,73.32499773]
[1756396470590,0.40043,4494.6,4494.5,0.8066]
[1756396470890,0.40043,4494.6,4494.5,1.942]
[1756396471393,0.40043,4494.6,4494.5,1.63726662]
[1756396474399,0.40043,4494.6,4494.5,0.52593324]
[1756396474594,1.00087,4495.5,4494.5,0.52593324]
[1756396474794,0.4004,4494.9,4494.5,0.52593324]
[1756396474999,2.00144,4496.2,4494.4,32.52499773]
[1756396475000,1.00076,4496.0,4494.4,32.52499773]
[1756396475298,1.0008,4495.8,4495.2,0.5973]
[1756396475492,1.1653,4495.5,4495.2,0.5973]
[1756396475692,1.1653,4495.4,4495.2,0.5973]
[1756396475999,2.24065,4495.3,4495.2,0.5973]
[1756396476300,2.24065,4495.3,4495.2,1.0195]
[1756396476495,1.0008,4495.8,4495.3,0.4222]
[1756396476698,0.8442,4495.8,4495.3,0.4222]
[1756396476999,2.0632,4495.8,4495.7,1.0978]
[1756396477390,2.0632,4495.8,4494.4,32.91190435]
[1756396477588,0.22225,4495.6,4494.4,32.91190435]
[1756396477798,0.22225,4495.6,4494.4,32.51146435]
[1756396478000,0.21698344,4497.6,4494.4,32.51146435]
[1756396478499,0.22225,4495.2,4494.4,32.51146435]
[1756396479394,1.219,4495.4,4494.5,0.40043]
[1756396479595,1.219,4497.0,4494.6,0.40042]
[1756396479796,1.219,4496.0,4494.4,33.51255435]
[1756396479996,0.22225,4495.7,4494.5,0.22243]
[1756396480301,1.219,4496.0,4494.9,0.40039]
[1756396480495,1.219,4496.0,4494.4,32.02295097]
[1756396480689,1.219,4496.0,4494.6,0.40041]
[1756396480690,0.44468,4495.7,4494.6,0.40041]
[1756396480896,0.44468,4495.7,4494.6,0.40042]
[1756396481203,0.40036,4495.3,4494.6,0.40042]
[1756396481396,0.40037,4495.2,4494.4,32.42338097]
[1756396481596,0.40037,4495.2,4494.4,32.24542097]
[1756396481793,0.40038,4495.1,4494.4,32.64586097]
[1756396482197,0.40037,4495.3,4494.5,0.40043]
[1756396482400,0.40037,4495.3,4494.6,0.40042]
[1756396482696,1.21898,4495.6,4494.4,32.02295097]
[1756396483002,1.21898,4495.6,4494.5,0.22247]
[1756396483499,0.40035,4495.4,4494.4,33.52701861]
[1756396483693,1.21898,4495.6,4494.4,31.53449759]
[1756396483893,0.22307179,4498.2,4494.5,0.22247]
[1756396484103,1.00064,4496.5,4495.2,0.40037]
[1756396484300,0.40031,4495.9,4495.2,0.40036]
[1756396484605,1.00062,4496.6,4494.7,2.99355102]
[1756396484606,0.40032,4495.8,4495.0,0.40038]
[1756396484803,0.40032,4495.7,4495.3,40.8]
[1756396485005,0.44468,4496.2,4495.3,40.8]
[1756396485006,0.40033,4495.6,4495.3,40.8]
[1756396485200,0.40034,4495.5,4495.3,40.8]
[1756396485504,1.219,4495.6,4494.6,0.40042]
[1756396486002,0.40036,4495.2,4494.7,40.8]
[1756396486305,0.40038,4495.1,4494.7,40.8]
[1756396486502,0.40038,4495.1,4494.4,31.71245759]
[1756396486703,1.219,4495.2,4494.6,0.40042]
[1756396486901,1.61937,4495.2,4494.4,33.70497861]
[1756396487101,1.61937,4495.2,4494.4,31.71245759]
[1756396487307,1.61937,4495.2,4494.5,0.40042]
[1756396487604,0.40038,4495.0,4494.7,40.8]
[1756396487792,2.0632,4494.8,4494.7,40.8]
[1756396488195,2.4636,4494.8,4494.7,40.8]
[1756396488397,1.219,4494.7,4494.4,31.31202759]
[1756396488593,2.46362,4494.5,4494.4,31.31202759]
[1756396489104,2.0632,4494.5,4494.4,31.31202759]
[1756396489501,2.0632,4494.5,4494.4,30.20069421]
[1756396490400,1.219,4494.5,4494.4,30.20069421]
[1756396490602,0.44468,4494.8,4494.4,30.20069421]
[1756396491003,1.61937,4495.2,4494.4,30.20069421]
[1756396491199,0.40036,4495.3,4494.6,0.40042]
[1756396491404,1.219,4495.6,4494.6,0.40042]
[1756396491405,1.15627629,4495.6,4494.6,0.40042]
[1756396491706,0.44468,4495.4,4494.6,0.40042]
[1756396492006,0.44468,4495.4,4494.5,0.40042]
[1756396492205,0.44468,4495.4,4494.6,0.40041]
[1756396492405,0.44468,4495.3,4494.6,0.40041]
[1756396492706,0.44468,4495.3,4494.4,29.48977083]
[1756396492894,1.15627629,4495.6,4494.4,29.89020083]
[1756396493099,0.44468,4495.3,4494.5,0.40042]
[1756396493405,0.40033,4495.6,4494.8,0.4004]
[1756396493607,0.40032,4495.8,4495.0,0.40038]
[1756396493807,1.00054,4496.9,4495.2,0.40036]
[1756396494201,0.30491254,4496.2,4495.3,0.40035]
[1756396494398,0.30491254,4496.2,4495.2,0.40036]
[1756396494604,0.22197775,4498.2,4495.3,40.8]
[1756396494805,0.22240001,4497.7,4495.3,40.8]
[1756396495204,0.30491254,4495.7,4495.3,40.8]
[1756396495506,1.52391254,4495.7,4495.3,40.8]
[1756396495699,1.219,4495.7,4495.1,0.40037]
[1756396495906,14.59997775,4498.2,4494.9,1.99179251]
[1756396495907,14.378,4498.2,4494.9,1.99179251]
[1756396496107,1.219,4497.7,4495.3,0.40035]